fUSD/lending_fUSD_20260115
["ID","MTS","AMOUNT","RATE_DAILY","PERIOD"]
[402037724,1768488692571,-502.05608285,0.00041643,30]
[402037725,1768488692580,-563.02,0.00041643,30]
[402037726,1768488692590,-540.76,0.00041643,30]
[402037727,1768488692599,-500.0,0.00041643,30]
[402037728,1768488692611,-500.0,0.00041643,30]
[402037729,1768488692623,-411.77758606,0.00041643,30]
[402037730,1768488692632,-500.0,0.00041643,30]
[402037731,1768488692642,-500.0,0.00041643,30]
[402037732,1768488692652,-500.0,0.00041643,30]
[402037733,1768488692662,-571.21319207,0.00041643,30]
[402037734,1768488692671,-500.0,0.00041643,30]
[402037735,1768488692681,-503.93697673,0.00041643,30]
[402037736,1768488692692,-500.0,0.00041643,30]
[402037737,1768488692701,-500.0,0.00041643,30]
[402037738,1768488692711,-500.0,0.00041643,30]
[402037739,1768488692720,-500.0,0.00041643,30]
[402037740,1768488692729,-844.78,0.00041643,30]
[402037741,1768488692739,-500.0,0.00041643,30]
[402037742,1768488692749,-500.0,0.00041643,30]
[402037743,1768488692758,-763.01,0.00041643,30]
[402037744,1768488692768,-531.52,0.00041643,30]
[402037745,1768488692777,-500.0,0.00041643,30]
[402037746,1768488692787,-864.15,0.00041643,30]
[402037747,1768488692796,-2420.0,0.00041643,30]
[402037748,1768488692806,-500.0,0.00041643,30]
[402037749,1768488692816,-601.25,0.00041643,30]
[402037750,1768488692826,-500.0,0.00041643,30]
[402037751,1768488692835,-1634.01,0.00041643,30]
[402037752,1768488692844,-742.35,0.00041643,30]
[402037753,1768488692854,-500.0,0.00041643,30]
[402037754,1768488692865,-1092.53,0.00041643,30]
[402037755,1768488692874,-1410.58,0.00041643,30]
[402037756,1768488692884,-500.0,0.00041643,30]
[402037757,1768488692894,-500.0,0.00041643,30]
[402037758,1768488692904,-1576.98,0.00041643,30]
[402037759,1768488692914,-500.0,0.00041643,30]
[402037760,1768488692923,-500.0,0.00041643,30]
[402037761,1768488692933,-340.30909375,0.00041643,30]
[402037762,1768488692943,-570.64304331,0.00041643,30]
[402037763,1768488692953,-500.0,0.00041643,30]
[402037764,1768488692963,-500.0,0.00041643,30]
[402037765,1768488692973,-500.0,0.00041643,30]
[402037766,1768488692982,-714.81,0.00041643,30]
[402037767,1768488692992,-805.16,0.00041643,30]
[402037768,1768488693002,-1343.98,0.00041643,30]
[402037769,1768488693012,-500.0,0.00041643,30]
[402037770,1768488693021,-500.0,0.00041643,30]
[402037771,1768488693031,-500.0,0.00041643,30]
[402037772,1768488693040,-500.0,0.00041643,30]
[402037773,1768488693050,-500.0,0.00041643,30]
[402037774,1768488693059,-500.0,0.00041643,30]
[402037775,1768488693069,-500.0,0.00041643,30]
[402037776,1768488693078,-645.49149169,0.00041643,30]
[402037777,1768488693088,-757.17,0.00041643,30]
[402037778,1768488693098,-1145.39,0.00041643,30]
[402037779,1768488693107,-500.0,0.00041643,30]
[402037780,1768488693118,-869.0,0.00041643,30]
[402037781,1768488693127,-500.0,0.00041643,30]
[402037782,1768488693136,-1369.86,0.00041643,30]
[402037783,1768488693146,-668.01,0.00041643,30]
[402037784,1768488693155,-696.36,0.00041643,30]
[402037785,1768488693164,-500.0,0.00041643,30]
[402037786,1768488693174,-500.0,0.00041643,30]
[402037787,1768488693183,-500.0,0.00041643,30]
[402037788,1768488693194,-500.0,0.00041643,30]
[402037789,1768488693203,-500.0,0.00041643,30]
[402037790,1768488693212,-500.0,0.00041643,30]
[402037791,1768488693222,-500.0,0.00041643,30]
[402037792,1768488693232,-535.34088628,0.00041643,30]
[402037793,1768488693241,-500.0,0.00041643,30]
[402037794,1768488693251,-500.0,0.00041643,30]
[402037795,1768488693261,-500.0,0.00041643,30]
[402037796,1768488693271,-530.62,0.00041643,30]
[402037797,1768488693282,-3924.39,0.00041643,30]
[402037798,1768488693292,-1063.11,0.00041643,30]
[402037799,1768488693302,-500.0,0.00041643,30]
[402037800,1768488693311,-500.0,0.00041643,30]
[402037801,1768488693320,-500.0,0.00041643,30]
[402037802,1768488693330,-777.34,0.00041643,30]
[402037803,1768488693339,-1186.0,0.00041643,30]
[402037804,1768488693349,-1639.64,0.00041643,30]
[402037805,1768488693359,-771.56,0.00041643,30]
[402037806,1768488693369,-500.0,0.00041643,30]
[402037807,1768488693378,-500.0,0.00041643,30]
[402037808,1768488693388,-635.47,0.00041643,30]
[402037809,1768488693397,-1629.43,0.00041643,30]
[402037810,1768488693407,-2197.32,0.00041643,30]
[402037811,1768488693417,-500.0,0.00041643,30]
[402037812,1768488693426,-623.81,0.00041643,30]
[402037813,1768488693436,-859.93,0.00041643,30]
[402037814,1768488693446,-500.0,0.00041643,14]
[402037815,1768488693456,-1684.99,0.00041643,30]
[402037816,1768488693466,-1305.5,0.00041643,30]
[402037817,1768488693476,-500.0,0.00041643,30]
[402037818,1768488693485,-500.0,0.00041643,30]
[402037819,1768488693495,-500.0,0.00041643,30]
[402037820,1768488693504,-500.0,0.00041643,30]
[402037821,1768488693514,-500.0,0.00041643,30]
[402037822,1768488693526,-1379.65,0.00041643,30]
[402037823,1768488693536,-500.0,0.00041643,30]
[402037824,1768488693546,-500.0,0.00041643,30]
[402037825,1768488693556,-1163.21,0.00041643,30]
[402037826,1768488693566,-500.0,0.00041643,30]
[402037827,1768488693576,-1082.1,0.00041643,30]
[402037828,1768488693586,-500.0,0.00041643,30]
[402037829,1768488693596,-523.41,0.00041643,30]
[402037830,1768488693606,-881.17,0.00041643,30]
[402037831,1768488693622,-500.0,0.00041643,30]
[402037832,1768488693631,-503.5788629,0.00041643,30]
[402037833,1768488693641,-500.0,0.00041643,30]
[402037834,1768488693651,-1066.94,0.00041643,30]
[402037835,1768488693661,-500.0,0.00041643,30]
[402037836,1768488693672,-817.11,0.00041643,30]
[402037837,1768488693681,-650.42,0.00041643,30]
[402037838,1768488693692,-500.0,0.00041643,30]
[402037839,1768488693702,-668.37,0.00041643,30]
[402037840,1768488693712,-500.97606894,0.00041643,2]
[402037841,1768488693722,-500.0,0.00041643,30]
[402037842,1768488693732,-500.0,0.00041643,30]
[402037843,1768488693741,-500.0,0.00041643,30]
[402037844,1768488693751,-813.24,0.00041643,30]
[402037845,1768488693760,-500.0,0.00041643,30]
[402037846,1768488693770,-1589.01,0.00041643,30]
[402037847,1768488693780,-500.0,0.00041643,30]
[402037848,1768488693789,-500.0,0.00041643,30]
[402037849,1768488693798,-500.0,0.00041643,30]
[402037850,1768488693808,-500.0,0.00041643,30]
[402037851,1768488693817,-500.0,0.00041643,30]
[402037852,1768488693827,-500.0,0.00041643,30]
[402037853,1768488693836,-500.0,0.00041643,30]
[402037854,1768488693846,-500.0,0.00041643,30]
[402037855,1768488693856,-500.0,0.00041643,30]
[402037856,1768488693870,-950.04,0.00041643,30]
[402037857,1768488693880,-1316.61,0.00041643,30]
[402037858,1768488693890,-369.44237051,0.00041643,30]
[402037859,1768488693900,-500.0,0.00041643,30]
[402037860,1768488693910,-655.72,0.00041643,30]
[402037861,1768488693919,-500.0,0.00041643,30]
[402037862,1768488693929,-1714.17,0.00041643,30]
[402037863,1768488693939,-606.42,0.00041643,30]
[402037864,1768488693950,-500.0,0.00041643,14]
[402037865,1768488693960,-500.0,0.00041643,30]
[402037866,1768488693970,-500.0,0.00041643,30]
[402037867,1768488693981,-500.0,0.00041643,30]
[402037868,1768488693990,-1132.55,0.00041643,30]
[402037869,1768488693999,-500.0,0.00041643,30]
[402037870,1768488694009,-500.0,0.00041643,30]
[402037871,1768488694018,-500.0,0.00041643,30]
[402037872,1768488694028,-907.56,0.00041643,30]
[402037873,1768488694039,-500.0,0.00041643,30]
[402037874,1768488694049,-668.51,0.00041643,30]
[402037875,1768488694058,-669.77,0.00041643,30]
[402037876,1768488694067,-500.0,0.00041643,30]
[402037877,1768488694077,-500.0,0.00041643,30]
[402037878,1768488694087,-500.0,0.00041643,30]
[402037879,1768488694096,-500.0,0.00041643,30]
[402037880,1768488694105,-500.0,0.00041643,2]
[402037881,1768488694117,-2096.82,0.00041643,30]
[402037882,1768488694126,-826.83,0.00041643,30]
[402037883,1768488694136,-1170.41,0.00041643,30]
[402037884,1768488694146,-500.0,0.00041643,30]
[402037885,1768488694155,-2304.87,0.00041643,30]
[402037886,1768488694165,-687.81,0.00041643,30]
[402037887,1768488694174,-500.0,0.00041643,30]
[402037888,1768488694184,-652.01,0.00041643,30]
[402037889,1768488694194,-1037.53,0.00041643,30]
[402037890,1768488694204,-500.0,0.00041643,30]
[402037891,1768488694214,-500.0,0.00041643,30]
[402037892,1768488694223,-500.0,0.00041643,30]
[402037893,1768488694233,-789.77,0.00041643,30]
[402037894,1768488694243,-500.0,0.00041643,30]
[402037895,1768488694253,-2789.42,0.00041643,30]
[402037896,1768488694263,-500.0,0.00041643,30]
[402037897,1768488694272,-826.69,0.00041643,30]
[402037898,1768488694282,-1149.65,0.00041643,30]
[402037899,1768488694291,-500.0,0.00041643,30]
[402037900,1768488694302,-500.0,0.00041643,30]
[402037901,1768488694311,-500.0,0.00041643,30]
[402037902,1768488694321,-694.97,0.00041643,30]
[402037903,1768488694330,-500.0,0.00041643,30]
[402037904,1768488694341,-265.47206408,0.00041643,30]
[402037905,1768488694351,-5560.17,0.00041643,30]
[402037906,1768488694363,-1451.55,0.00041643,30]
[402037907,1768488694372,-866.58,0.00041643,30]
[402037908,1768488694382,-500.0,0.00041643,30]
[402037909,1768488694392,-500.0,0.00041643,30]
[402037910,1768488694402,-500.0,0.00041643,30]
[402037911,1768488694412,-502.74,0.00041643,30]
[402037912,1768488694422,-500.0,0.00041643,30]
[402037913,1768488694432,-1120.83,0.00041643,30]
[402037914,1768488694442,-1802.52,0.00041643,30]
[402037915,1768488694452,-500.0,0.00041643,30]
[402037916,1768488694461,-531.08,0.00041643,30]
[402037917,1768488694471,-1400.61,0.00041643,30]
[402037918,1768488694481,-1000.0,0.00041643,30]
[402037919,1768488694491,-500.0,0.00041643,30]
[402037920,1768488694501,-2718.45,0.00041643,30]
[402037921,1768488694511,-500.0,0.00041643,30]
[402037922,1768488694521,-500.0,0.00041643,30]
[402037923,1768488694531,-500.0,0.00041643,30]
[402037924,1768488694542,-1795.34,0.00041643,30]
[402037925,1768488694551,-500.0,0.00041643,30]
[402037926,1768488694562,-1450.87,0.00041643,30]
[402037927,1768488694572,-500.0,0.00041643,30]
[402037928,1768488694581,-835.38,0.00041643,30]
[402037929,1768488694591,-1344.06,0.00041643,30]
[402037930,1768488694602,-354.8855258,0.00041643,30]
[402037931,1768488694615,-1177.91,0.00041643,30]
[402037932,1768488694629,-567.14,0.00041643,30]
[402037933,1768488694639,-602.38,0.00041643,30]
[402037934,1768488694648,-2242.4,0.00041643,30]
[402037935,1768488694659,-500.0,0.00041643,30]
[402037936,1768488694668,-692.93,0.00041643,30]
[402037937,1768488694678,-500.0,0.00041643,30]
[402037938,1768488694688,-500.0,0.00041643,30]
[402037939,1768488694698,-4029.16,0.00041643,30]
[402037940,1768488694709,-500.0,0.00041643,30]
[402037941,1768488694719,-549.02,0.00041643,30]
[402037942,1768488694729,-500.0,0.00041643,30]
[402037943,1768488694739,-674.28,0.00041643,30]
[402037944,1768488694751,-500.0,0.00041643,30]
[402037945,1768488694760,-500.0,0.00041643,30]
[402037946,1768488694770,-1157.4,0.00041643,30]
[402037947,1768488694780,-538.61,0.00041643,30]
[402037948,1768488694790,-500.0,0.00041643,30]
[402037949,1768488694800,-500.0,0.00041643,30]
[402037950,1768488695008,-513.64,0.00041643,30]
[402037951,1768488695019,-500.0,0.00041643,30]
[402037952,1768488695028,-500.0,0.00041643,30]
[402037953,1768488695038,-223.56,0.00041643,30]
[402037954,1768488695047,-500.0,0.00041643,30]
[402037955,1768488695056,-500.0,0.00041643,30]
[402037956,1768488695067,-500.0,0.00041643,30]
[402037957,1768488695077,-651.55,0.00041643,30]
[402037958,1768488695086,-2027.4,0.00041643,30]
[402037959,1768488695095,-500.0,0.00041643,30]
[402037960,1768488695104,-585.22308384,0.00041643,30]
[402037961,1768488695114,-500.0,0.00041643,120]
[402037962,1768488695123,-505.82,0.00041643,30]
[402037963,1768488695133,-500.0,0.00041643,30]
[402037964,1768488695142,-1546.36,0.00041643,30]
[402037965,1768488695152,-942.35,0.00041643,30]
[402037966,1768488695162,-675.33,0.00041643,30]
[402037967,1768488695171,-713.23,0.00041643,30]
[402037968,1768488695181,-578.01,0.00041643,30]
[402037969,1768488695190,-811.33,0.00041643,30]
[402037970,1768488695200,-500.0,0.00041643,14]
[402037971,1768488695210,-500.0,0.00041643,30]
[402037972,1768488695219,-1021.47,0.00041643,30]
[402037973,1768488695228,-679.88,0.00041643,30]
[402037974,1768488695239,-500.0,0.00041643,30]
[402037975,1768488695249,-1723.27,0.00041643,30]
[402037976,1768488695258,-500.0,0.00041643,30]
[402037977,1768488695267,-517.91,0.00041643,30]
[402037978,1768488695276,-509.53676429,0.00041643,30]
[402037979,1768488695286,-547.56,0.00041643,30]
[402037980,1768488695297,-1014.52,0.00041643,30]
[402037981,1768488695306,-1431.97,0.00041643,14]
[402037982,1768488695319,-500.0,0.00041643,30]
[402037983,1768488695329,-954.61,0.00041643,30]
[402037984,1768488695339,-500.0,0.00041643,30]
[402037985,1768488695348,-500.0,0.00041643,30]
[402037986,1768488695358,-749.64,0.00041643,30]
[402037987,1768488695370,-500.0,0.00041643,30]
[402037988,1768488695380,-500.0,0.00041643,30]
[402037989,1768488695389,-500.0,0.00041643,30]
[402037990,1768488695398,-725.61,0.00041643,30]
[402037991,1768488695408,-798.15,0.00041643,30]
[402037992,1768488695417,-961.74,0.00041643,30]
[402037993,1768488695426,-827.99,0.00041643,30]
[402037994,1768488695436,-1991.31,0.00041643,30]
[402037995,1768488695446,-656.43,0.00041643,30]
[402037996,1768488695455,-1740.58,0.00041643,30]
[402037997,1768488695464,-749.83,0.00041643,30]
[402037998,1768488695474,-820.49,0.00041643,30]
[402037999,1768488695484,-500.0,0.00041643,30]
[402038000,1768488695493,-676.62,0.00041643,30]
[402038001,1768488695503,-510.48,0.00041643,30]
[402038002,1768488695512,-500.0,0.00041643,30]
[402038003,1768488695521,-500.0,0.00041643,30]
[402038004,1768488695531,-300.0,0.00041643,2]
[402038005,1768488695540,-500.0,0.00041643,30]
[402038006,1768488695551,-1204.64,0.00041643,30]
[402038007,1768488695560,-500.0,0.00041643,30]
[402038008,1768488695570,-2193.75,0.00041643,30]
[402038009,1768488695580,-500.0,0.00041643,30]
[402038010,1768488695589,-1772.99,0.00041643,30]
[402038011,1768488695599,-457.07032014,0.00041643,30]
[402038012,1768488695609,-500.0,0.00041643,30]
[402038013,1768488695623,-500.0,0.00041643,30]
[402038014,1768488695633,-613.22878837,0.00041643,30]
[402038015,1768488695643,-500.0,0.00041643,30]
[402038016,1768488695654,-2105.76,0.00041643,30]
[402038017,1768488695666,-990.25,0.00041643,30]
[402038018,1768488695681,-1540.86,0.00041643,30]
[402038019,1768488695691,-1198.5,0.00041643,30]
[402038020,1768488695700,-500.0,0.00041643,30]
[402038021,1768488695710,-1134.69,0.00041643,30]
[402038022,1768488695719,-500.0,0.00041643,30]
[402038023,1768488695729,-500.0,0.00041643,30]
[402038024,1768488695738,-500.0,0.00041643,16]
[402038025,1768488695747,-500.0,0.00041643,30]
[402038026,1768488695757,-500.0,0.00041643,30]
[402038027,1768488695766,-500.0,0.00041643,30]
[402038028,1768488695776,-1134.25,0.00041643,30]
[402038029,1768488695785,-677.36,0.00041643,30]
[402038030,1768488695795,-1243.71,0.00041643,30]
[402038031,1768488695805,-622.75,0.00041643,30]
[402038032,1768488695815,-1093.73,0.00041643,30]
[402038033,1768488695824,-500.0,0.00041643,30]
[402038034,1768488695834,-500.0,0.00041643,30]
[402038035,1768488695843,-500.0,0.00041643,30]
[402038036,1768488695853,-500.0,0.00041643,30]
[402038037,1768488695863,-500.0,0.00041643,30]
[402038038,1768488695873,-500.0,0.00041643,30]
[402038039,1768488695883,-500.0,0.00041643,30]
[402038040,1768488695892,-500.0,0.00041643,30]
[402038041,1768488695901,-500.0,0.00041643,30]
[402038042,1768488695910,-561.22,0.00041643,30]
[402038043,1768488695920,-500.0,0.00041643,30]
[402038044,1768488695929,-584.89,0.00041643,30]
[402038045,1768488695938,-1436.83,0.00041643,30]
[402038046,1768488695948,-1474.86,0.00041643,30]
[402038047,1768488695957,-1265.38,0.00041643,30]
[402038048,1768488695968,-500.0,0.00041643,30]
[402038049,1768488695977,-560.28,0.00041643,30]
[402038050,1768488695988,-500.0,0.00041643,30]
[402038051,1768488695998,-667.6,0.00041643,30]
[402038052,1768488696008,-500.0,0.00041643,30]
[402038053,1768488696018,-1528.84,0.00041643,30]
[402038054,1768488696028,-500.0,0.00041643,30]
[402038055,1768488696037,-1224.17,0.00041643,30]
[402038056,1768488696047,-805.58,0.00041643,30]
[402038057,1768488696057,-500.0,0.00041643,30]
[402038058,1768488696067,-449.08307119,0.00041643,30]
[402038059,1768488696079,-500.0,0.00041643,30]
[402038060,1768488696090,-647.62,0.00041643,30]
[402038061,1768488696100,-1221.51,0.00041643,30]
[402038062,1768488696111,-500.0,0.00041643,30]
[402038063,1768488696123,-500.0,0.00041643,30]
[402038064,1768488696132,-500.0,0.00041643,30]
[402038065,1768488696141,-500.0,0.00041643,30]
[402038066,1768488696151,-439.92171327,0.00041643,30]
[402038067,1768488696160,-500.0,0.00041643,30]
[402038068,1768488696170,-500.0,0.00041643,30]
[402038069,1768488696180,-1236.02,0.00041643,30]
[402038070,1768488696189,-500.0,0.00041643,30]
[402038071,1768488696199,-500.0,0.00041643,30]
[402038072,1768488696208,-500.0,0.00041643,30]
[402038073,1768488696218,-1291.13,0.00041643,30]
[402038074,1768488696227,-500.0,0.00041643,30]
[402038075,1768488696241,-3310.92,0.00041643,30]
[402038076,1768488696251,-500.0,0.00041643,30]
[402038077,1768488696261,-504.31420158,0.00041643,30]
[402038078,1768488696270,-500.0,0.00041643,10]
[402038079,1768488696280,-611.45,0.00041643,30]
[402038080,1768488696289,-500.0,0.00041643,30]
[402038081,1768488696298,-574.04,0.00041643,30]
[402038082,1768488696307,-500.0,0.00041643,30]
[402038083,1768488696317,-1275.06,0.00041643,30]
[402038084,1768488696327,-500.0,0.00041643,30]
[402038085,1768488696337,-500.0,0.00041643,30]
[402038086,1768488696346,-1003.4,0.00041643,30]
[402038087,1768488696356,-2763.15,0.00041643,30]
[402038088,1768488696368,-500.0,0.00041643,30]
[402038089,1768488696378,-500.0,0.00041643,30]
[402038090,1768488696388,-1536.58,0.00041643,30]
[402038091,1768488696398,-500.0,0.00041643,30]
[402038092,1768488696408,-1050.81,0.00041643,30]
[402038093,1768488696418,-954.23,0.00041643,30]
[402038094,1768488696428,-500.0,0.00041643,30]
[402038095,1768488696438,-301.12044666,0.00041643,30]
[402038096,1768488696448,-970.47,0.00041643,30]
[402038097,1768488696458,-500.0,0.00041643,30]
[402038098,1768488696468,-500.0,0.00041643,30]
[402038099,1768488696477,-964.9,0.00041643,30]
[402038100,1768488696487,-1993.6,0.00041643,30]
[402038101,1768488696496,-3489.66,0.00041643,30]
[402038102,1768488696506,-727.15,0.00041643,30]
[402038103,1768488696516,-500.99275999,0.00041643,5]
[402038104,1768488696525,-1004.2,0.00041643,30]
[402038105,1768488696535,-872.64,0.00041643,30]
[402038106,1768488696544,-538.35,0.00041643,30]
[402038107,1768488696553,-500.0,0.00041643,30]
[402038108,1768488696563,-340.42207067,0.00041643,30]
[402038109,1768488696573,-500.0,0.00041643,30]
[402038110,1768488696583,-502.99694221,0.00041643,30]
[402038111,1768488696593,-500.0,0.00041643,30]
[402038112,1768488696602,-500.0,0.00041643,30]
[402038113,1768488696617,-500.0,0.00041643,30]
[402038114,1768488696637,-500.0,0.00041643,30]
[402038115,1768488696657,-1603.77,0.00041643,30]
[402038116,1768488696673,-1367.37,0.00041643,30]
[402038117,1768488696682,-1601.76,0.00041643,30]
[402038118,1768488696692,-500.0,0.00041643,30]
[402038119,1768488696702,-1021.12,0.00041643,30]
[402038120,1768488696712,-4117.53,0.00041643,30]
[402038121,1768488696722,-2410.67,0.00041643,30]
[402038122,1768488696732,-515.04,0.00041643,30]
[402038123,1768488696742,-1029.31,0.00041643,30]
[402038124,1768488696752,-500.0,0.00041643,30]
[402038125,1768488696763,-500.0,0.00041643,30]
[402038126,1768488696772,-614.65,0.00041643,30]
[402038127,1768488696782,-500.0,0.00041643,30]
[402038128,1768488696792,-500.0,0.00041643,30]
[402038129,1768488696802,-500.0,0.00041643,30]
[402038130,1768488696812,-725.17,0.00041643,30]
[402038131,1768488696821,-3514.96,0.00041643,30]
[402038132,1768488696831,-500.0,0.00041643,30]
[402038133,1768488696843,-500.0,0.00041643,30]
[402038134,1768488696852,-505.54,0.00041643,30]
[402038135,1768488696863,-500.0,0.00041643,30]
[402038136,1768488696873,-500.0,0.00041643,30]
[402038137,1768488696882,-500.0,0.00041643,30]
[402038138,1768488696892,-1727.77,0.00041643,30]
[402038139,1768488696902,-626.49,0.00041643,120]
[402038140,1768488696912,-976.54,0.00041643,30]
[402038141,1768488696922,-366.38021877,0.00041643,2]
[402038142,1768488696932,-712.77,0.00041643,30]
[402038143,1768488696941,-819.43,0.00041643,30]
[402038144,1768488696951,-979.81,0.00041643,30]
[402038145,1768488696961,-504.39,0.00041643,30]
[402038146,1768488696972,-500.0,0.00041643,30]
[402038147,1768488696982,-500.0,0.00041643,30]
[402038148,1768488696992,-1181.82,0.00041643,30]
[402038149,1768488697002,-500.0,0.00041643,30]
[402038150,1768488697012,-1335.08,0.00041643,30]
[402038151,1768488697022,-500.0,0.00041643,14]
[402038152,1768488697032,-500.0,0.00041643,30]
[402038153,1768488697045,-1051.23,0.00041643,30]
[402038154,1768488697056,-500.0,0.00041643,30]
[402038155,1768488697068,-938.93,0.00041643,30]
[402038156,1768488697080,-500.0,0.00041643,30]
[402038157,1768488697090,-541.93,0.00041643,30]
[402038158,1768488697101,-500.0,0.00041643,30]
[402038159,1768488697111,-1687.1,0.00041643,30]
[402038160,1768488697124,-500.0,0.00041643,30]
[402038161,1768488697133,-692.24,0.00041643,30]
[402038162,1768488697144,-1435.52,0.00041643,30]
[402038163,1768488697154,-1259.51,0.00041643,30]
[402038164,1768488697164,-500.0,0.00041643,30]
[402038165,1768488697174,-500.0,0.00041643,30]
[402038166,1768488697184,-2743.54,0.00041643,30]
[402038167,1768488697193,-667.41,0.00041643,30]
[402038168,1768488697203,-500.0,0.00041643,30]
[402038169,1768488697213,-1690.77,0.00041643,30]
[402038170,1768488697223,-500.0,0.00041643,30]
[402038171,1768488697232,-542.4,0.00041643,30]
[402038172,1768488697243,-763.99,0.00041643,30]
[402038173,1768488697254,-565.39659774,0.00041643,30]
[402038174,1768488697263,-500.0,0.00041643,30]
[402038175,1768488697273,-500.0,0.00041643,30]
[402038176,1768488697283,-500.0,0.00041643,30]
[402038177,1768488697293,-834.95,0.00041643,30]
[402038178,1768488697304,-500.0,0.00041643,30]
[402038179,1768488697314,-500.0,0.00041643,30]
[402038180,1768488697323,-500.0,0.00041643,30]
[402038181,1768488697333,-500.0,0.00041643,30]
[402038182,1768488697343,-1129.89,0.00041643,30]
[402038183,1768488697352,-1906.6,0.00041643,30]
[402038184,1768488697362,-1079.02,0.00041643,30]
[402038185,1768488697373,-500.0,0.00041643,30]
[402038186,1768488697383,-500.0,0.00041643,30]
[402038187,1768488697392,-500.0,0.00041643,30]
[402038188,1768488697402,-500.0,0.00041643,30]
[402038189,1768488697411,-500.0,0.00041643,30]
[402038190,1768488697421,-1347.08,0.00041643,30]
[402038191,1768488697440,-500.0,0.00041643,30]
[402038192,1768488697451,-1579.79,0.00041643,30]
[402038193,1768488697461,-500.0,0.00041643,30]
[402038194,1768488697471,-300.0,0.00041643,2]
[402038195,1768488697482,-580.48,0.00041643,30]
[402038196,1768488697492,-500.0,0.00041643,30]
[402038197,1768488697501,-500.0,0.00041643,30]
[402038198,1768488697511,-500.0,0.00041643,30]
[402038199,1768488697521,-891.4,0.00041643,30]
[402038200,1768488697531,-683.3,0.00041643,30]
[402038201,1768488697540,-500.0,0.00041643,30]
[402038202,1768488697550,-218.092269,0.00041643,30]
[402038203,1768488697559,-957.93,0.00041643,30]
[402038204,1768488697570,-1071.31,0.00041643,30]
[402038205,1768488697580,-811.4,0.00041643,30]
[402038206,1768488697589,-1733.3,0.00041643,30]
[402038207,1768488697600,-500.0,0.00041643,30]
[402038208,1768488697610,-1730.87,0.00041643,30]
[402038209,1768488697621,-1348.23,0.00041643,30]
[402038210,1768488697632,-1073.1,0.00041643,30]
[402038211,1768488697642,-585.42,0.00041643,30]
[402038212,1768488697652,-1030.96,0.00041643,30]
[402038213,1768488697663,-500.0,0.00041643,30]
[402038214,1768488697672,-535.68,0.00041643,30]
[402038215,1768488697682,-500.0,0.00041643,30]
[402038216,1768488697692,-638.86,0.00041643,30]
[402038217,1768488697703,-632.92,0.00041643,30]
[402038218,1768488697713,-500.0,0.00041643,30]
[402038219,1768488697722,-500.0,0.00041643,30]
[402038220,1768488697732,-500.0,0.00041643,30]
[402038221,1768488697741,-804.62,0.00041643,30]
[402038222,1768488697751,-504.81,0.00041643,30]
[402038223,1768488697761,-1106.51,0.00041643,30]